Workbook

Sheet Instructions
H1: Abrasive blasting Air emissions calculator
O4: p-sbap5-19 • 6/5/23
B6: Instructions
B7: 1) Start with the grey tabs.
C8: "Dust control" tab. Regardless of the air emission calculation results and whether an air permit is required, you must take all reasonable measures to control dust and prevent the release of particulate matter from air-based blasting
C10: "Standards" tab. Find out if your abrasive blasting meets the criteria to qualify as an insignificant activity or a conditionally insignificant activity and whether a federal rule may apply to the business.
B12: 2) Using guidance from the "Standards" tab, continue to the blue tabs to calculate emissions.
B15: Color key
B16: Blue | C16: Enter information for your facility in the blue boxes.
B17: Orange | C17: Orange boxes are filled with standard values. You can change them if you have test results that provide data specific to your site.
B18: White | C18: Do not change the values or formulas in white boxes. White boxes contain intermediate calculations for determining emissions.
B19: Green | C19: Your emission totals are in green boxes. These are automatically calculated based on information entered in blue boxes.
B20: Yellow | C20: Permit and insignificant activity thresholds
B21: Blue Text | C21: Key information and tips.
B24: Assistance
B25: This calculator was created by the Minnesota Pollution Control Agency's (MPCA) Small Business Environmental Assistance Program (SBEAP).
B26: We provide free, confidential, environmental assistance to small businesses. For more information:
B27: Call: | C27: 651-282-6143 | E27: Email: | F27: smallbizhelp.pca@state.mn.us
C28: 800-657-3938
B30: Online at the MPCA website at: | E30: https://www.pca.state.mn.us/smallbizhelp

Sheet Dust control
B1: =Instructions!O4 -> p-sbap5-19 • 6/5/23
B2: Implementing dust control measures
B4: Regardless of the air emission calculation results and whether an air permit is required, you must take all reasonable measures to control dust and prevent the release of particulate matter from air-based blasting operations.1
B7: Such measures may include:
B8: ▪ | C8: Permanent enclosures or temporary tenting over equipment being blasted or over the entire area
B9: ▪ | C9: Modified-wet blasting (adding only enough water to the air-based blasting stream to capture dust without causing the wetted dust to adhere to the surface being blasted)
B11: ▪ | C11: Vacuum blasting (air-based blasting using a nozzle attachment and negative air pressure to capture dust)
B12: ▪ | C12: Other dust-control techniques
B14: Constantly monitor the effectiveness of your dust control measures. If dust is released into the air even with the measures you have implemented, you must take additional measures. If environmental conditions (such as high winds) prevent complete capture of particulate matter, you must stop blasting until conditions improve or you apply enough additional control measures to prevent a release.
C17: Fugitive dust emissions management and best practices
B19: In addition to preventing and controlling dusts, other regulatory requirements apply to:
B20: ▪ | C20: blasting a structure that may bear lead paint
B21: ▪ | C21: blasting a residence, school, or any building built before 1978 in which children are cared for
B22: ▪ | C22: blasting steel structures such as bridges, water towers, aboveground storage tanks, grain bins, truss towers, railroad cars, barges, and commercial vehicles/trucks
B24: ▪ | C24: the management and disposal of blasting debris
C26: https://www.pca.state.mn.us/sites/default/files/w-hw4-39a.pdf
B28: 1Minn. R. 7011.0150

Sheet Standards
B1: =Instructions!O4 -> p-sbap5-19 • 6/5/23
B2: Regulations and requirements
B4: The need for a permit is based on your entire business's potential air emissions. All activities that put pollutants into the air (such as painting, wood working, metalworking, and fuel use) need to be assessed. Once you identify if you need a permit, based on the total potential emissions from your business and whether an NSPS applies, you can then use your actual emissions to see which permit is the best fit for your business.
B8: MPCA standards
B9: Insignificant activity if it meets one of the following:
B10: ▪ | C10: Abrasive blasting is part of routine housekeeping or facility maintenance and not associated with your primary manufacturing or processes. | N10: Minn. R. 7007.1300, subp. 2
B12: ▪ | C12: Abrasives are suspended in water or sponge media.
B13: ▪ | C13: The potential amount of particulate matter air emissions is 1 ton or less. | N13: Minn. R. 7007.1300, subp. 3
C14: ▪ | D14: Potential means that the abrasive blasting is operating at the maximum possible rate, 24 hours-a-day.
C15: ▪ | D15: Calculate potential emissions using the Abrasive Blasting tab.
C17: Minn. R. 7007.1300 was modified and became effective January 14, 2019. Qualifying for an insignificant activity no longer includes processing equipment that emits particulate matter that is vented indoors 100% of the time and does not use air filtering systems used to control indoor air emissions.
B21: Conditionally insignificant activity must meet all of the following:
B22: ▪ | C22: This rule does not apply if lead is a component of any mechanical finishing operation, including as a component of the metal being finished.
B23: ▪ | C23: The actual amount of particulate matter emissions is 5 tons or less from all mechanical finishing at the business | N23: Minn. R. 7008.4110
C24: ▪ | D24: Mechanical finishing includes abrasive blasting, buffing, polishing, carving, cutting, drilling, machining, routing, sanding, sawing, surface grinding, or turning equipment, but does not include abrasive blasting for removing lead-containing paint.
N26: Contains monitoring and recordkeeping requirements
B27: ▪ | C27: Must install, operate, and maintain control equipment designed to control emissions of particulate matter on all mechanical finishing.
B29: ▪ | C29: Must calculate actual emissions using Mechanical Finishing tab.
B32: Additional MPCA resources
B33: ▪ | C33: If your blasting activity is part of, or connected with, manufacturing or processing, it may be subject to the Industrial Process Equipment Rule. An example is a booth used to blast the paint off a manufactured product so it can be repainted. | N33: Industrial process equipment rule
B35: ▪ | C35: About air permits and thresholds can be found on the MPCA Air Permits webpage. | N35: Who needs an air permit?
B38: U.S. Environmental Protection Agency (EPA) standards
B39: National emission standards for hazardous air pollutants (NESHAP) for metal fabrication and finishing
B40: This standard is for dry abrasive blasting, dry grinding or polishing with machines, dry machining, spray painting, and welding activities.
B41: This standard applies to dry abrasive blasting if
B42: 1) | C42: your business' NAICS or SIC code pairing is listed in the same row in the table below, and | L42: Full Text: | M42: 40 CFR 63, subp. XXXXXX
B43: 2) | C43: your abrasive blast media contains more than | L43: Flow chart: | M43: Applicability and requirements
C44: ▪ | D44: 0.1% cadmium, chromium, nickel, or lead | L44: Resource: | M44: EPA Rule information
C45: ▪ | D45: 1.0% manganese
B47: Table: source categories affected by NESHAP 6X
B48: Hint: If you are unsure, tax forms and worker's compensation documents often identify your NAICS or SIC code.
B49: NAICS | C49: NAICS Description | G49: SIC | H49: EPA Source Category | L49: SIC Code Description
B50: 332111 | C50: Iron and Steel Forging | G50: 3462 | H50: Iron and Steel Forging | L50: Iron and Steel Forging
B51: 332117 | C51: Powder Metallurgy Part Manufacturing | G51: 3499 | H51: Fabricated Metal Products, NEC | L51: Fabricated Metal Products, NEC
B52: 332312 | C52: Fabricated Structural Metal Manufacturing | G52: 3441 | H52: Fabricated Structural Metal Manufacturing | L52: Fabricated Structural Metal Fabrication
B53: 332313 | C53: Plate Work Manufacturing | G53: 3443 | H53: Fabricated Plate Work (Boiler Shops) | L53: Fabricated Plate Work and Boiler Shops
B54: 332410 | C54: Power Boiler and Heat Exchanger Manufacturing | G54: 3443 | H54: Fabricated Plate Work (Boiler Shops) | L54: Fabricated Plate Work and Boiler Shops
B55: 332420 | C55: Metal Tank (Heavy Gauge) Manufacturing | G55: 3443 | H55: Fabricated Plate Work (Boiler Shops) | L55: Fabricated Plate Work and Boiler Shops
B56: 332618 | C56: Other Fabricated Wire Product Manufacturing | G56: 3399 | H56: Primary Metals Products Manufacturing | L56: Primary Metals Products Manufacturing
B57: 332919 | C57: Other Metal Valve and Pipe Fitting Manufacturing | G57: 3494 | H57: Valves and Pipe Fittings, NEC | L57: Valves and Pipe Fittings, NEC
B58: 332999 | C58: All Other Miscellaneous Fabricated Metal Product Mfg. | G58: 3499 | H58: Fabricated Metal Products, NEC | L58: Fabricated Metal Products, NEC
B59: 333120 | C59: Construction Machinery Manufacturing | G59: 3531 | H59: Industrial Machinery & Equipment: Finishing Ops | L59: Construction Machinery Manufacturing
B60: 333132 | C60: Oil and Gas Field Machinery and Equipment Mfg. | G60: 3533 | H60: Industrial Machinery & Equipment: Finishing Ops | L60: Oil and Gas Field Machinery Equipment Manufacturing
B61: 333414 | C61: Heating Equipment (except Warm Air Furnaces) Mfg. | G61: 3433 | H61: Heating Equipment, except electric | L61: Heating Equipment, except electric
B62: 333911 | C62: Pump and Pumping Equipment Manufacturing | G62: 3561 | H62: Industrial Machinery & Equipment: Finishing Ops | L62: Pumps and Pumping Equipment Manufacturing
B63: 335312 | C63: Motor and Generator Manufacturing | G63: 3621 | H63: Electrical & Electronic Equipment Finishing Ops | L63: Motors and Generators Manufacturing
B64: 335999 | C64: All Other Misc. Electrical Equipment & Component Mfg. | G64: 3699 | H64: Electrical & Electronic Equipment Finishing Ops | L64: Electrical Machinery, Equipment, and Supplies, NEC
B65: NEC = not elsewhere classified

Sheet Mechanical Finishing
B1: =Instructions!O4 -> p-sbap5-19 • 6/5/23
B2: Air emissions from mechanical finishing, conditionally insignificant activity
B3: Use this calculator to see if your mechanical finishing operations are a conditionally insignificant activity and to recalculate annually.
C4: Mechanical finishing operations means buffing, abrasive blasting, polishing, carving, cutting, drilling, machining, routing, sanding, sawing, surface grinding, or turning equipment. Does not include abrasive blasting for removing lead-containing paint.
C6: ▪ If lead is a component of any mechanical finishing operation, including the composition of the metal being finished, this rule does not apply. Check the safety data sheet of the metal being finished.
B9: In order to qualify, you must:
C10: A. install, operate, and maintain control equipment designed to control emissions of particulate matter on the mechanical finishing operations; and
C11: B. limit emissions of particulate matter from all mechanical finishing operations to less than 10,000 pounds in each calendar year, calculated according to the method below. All emissions of particulate matter from all mechanical finishing operations at the stationary source must be accounted for in the annual calculation.
C13: C. comply with the monitoring and record keeping requirements (see below) | G13: Minn. R. 7008.4110
B15: Enter information for your business in the blue cells.
B16: Step 1
B17: OP | C17: Enter total hours the control equipment was operated last year | E17: 0 | F17: hours
B19: EF | C19: Enter the design concentration of PM from your control equipment | E19: 0 | F19: grain/cubic foot | G19: This information is often listed on the control equipment nameplate, or enter 0.07 if you have cyclones or 0.03 if you have fabric filters.
B21: Qair | C21: Designed airflow rate from the control equipment | E21: 0 | F21: CFM | G21: This information is often listed on the equipment nameplate.
C23: Conversion factor | E23: =(1/7000)*(60/1) -> 0.008571428571 | F23: lb./grain * min/hour | G23: 1 lb. = 7000 grains; 60 minutes = 1 hour
B25: EC | C25: OP * EF * Qair * Conversion factor = | E25: =E17*E19*E21*E23 -> 0 | F25: pounds of PM emissions from control equipment for the year
B28: Step 2
C29: Choose your control equipment type1 from the drop-down list | E29: Choose control equipment type
B31: R | C31: Ratio of uncaptured to captured emissions from the control equipment | E31: ='Data Validation'!E43 -> --
B33: EU | C33: R * EC = | E33: =IFERROR(E25*E31,0) -> 0 | F33: pounds of uncaptured emissions from control equipment for the year
B36: Result
B37: E | C37: EC * EU = | E37: =E25+E33 -> 0 | F37: total pounds of particulate matter for the year
D39: This number must be less than 10,000 pounds to qualify.
B41: 1Control equipment type definitions:
C42: A total enclosure means an enclosure that completely surrounds emissions from an emissions unit such that all emissions are captured and discharged through ductwork to control equipment.
C44: A hood means a shaped inlet to a pollution control system that does not totally surround emissions from an emissions unit, that is designed, used, and maintained to capture and discharge the air emissions through ductwork to control equipment, and that conforms to the design and operating practices recommended in "Industrial Ventilation - A Manual of Recommended Practice, American Conference of Governmental Industrial Hygienists." This document is subject to frequent change. A spray booth can be a hood if it meets the definition in this subpart.
C48: A certified hood complies with Minn. R. 7011.0072
B50: Monitoring and record keeping | E50: Minn. R. 7008.4110
B51: Control equipment:
B52: ▪ | C52: Operate and maintain, as required by the manufacturer's specification. Proper operation and maintenance includes effective performance, adequate funding, adequate operator staffing and training, and adequate laboratory and process controls, including appropriate quality assurance procedures.
B54: ▪ | C54: Inspect once each calendar quarter or more frequently according to the manufacturer's specification
B55: Maintain records:
B56: ▪ | C56: of inspection, maintenance, and repair activities and the manufacturer's inspection, maintenance, and repair specifications for the control equipment for at least five years.
B57: ▪ | C57: for each calendar year of the hours operated and design airflow rate for the control equipment associated with each mechanical finishing operation
B58: If not using the default design airflow rate:
B59: ▪ | C59: If the default value for design airflow rate is not used, maintain records for each calendar year of the manufacturer's design concentration for particulate matter from the control equipment associated with each mechanical finishing operation
B61: If using a certified hood:
B62: ▪ | C62: If the emissions from mechanical finishing operations are vented to the control equipment through a hood, you may evaluate, on a form provided by the commissioner, whether the hood conforms to the design and operating practices recommended in "Industrial Ventilation - A Manual of Recommended Practice, American Conference of Governmental Industrial Hygienists," in order to use the certified hood values in subpart 4. The manual is incorporated by reference under part 7011.0061. An owner or operator that performs this evaluation must:
C66: ▪ if a permit is required under chapter 7007, include with the permit application the certification required in part 7011.0072, subpart 2
C67: ▪ maintain at the stationary source records of the evaluation of each hood
C68: ▪ record each month the fan rotation speed, fan power draw, face velocity, or other comparable airflow indicator for each hood

Sheet Abrasive Blasting
B1: =Instructions!O4 -> p-sbap5-19 • 6/5/23
B2: Air emissions from abrasive blasting
B4: Abrasive/blast media characteristics
B5: If the abrasive media you are using does not fit into any of the categories provided, select "Other" from the drop-down list.
B7: Which abrasive is being used? | F7: Choose one | J7: Abrasive | L7: Examples of media | P7: Density (lb/ft3)
E8: What is the density of the abrasive? | F8: 0 | H8: lb/ft3 | J8: Sand | L8: Silica sand, crushed glass | P8: 99 (sand)
J9: Grit | L9: Metals, minerals, synthetics | P9: 160 (aluminum oxide)
B10: Review the safety data sheet for your blast media. Enter any hazardous air pollutants and the maximum contents in the blue cells if the abrasive blasting emission calculator. See "HAP list" tab for assistance. | J10: Shot | L10: Metals, minerals, synthetics, cut wire | P10: 487 (steel)
J11: Other | L11: Coal and smelter slag, glass beads
B14: Equipment and manufacturer specifications
B15: There are two manufacturer specifications that may be used for determining the maximum capacity of the abrasive blasting operation.
B17: Which manufacturer specification will you use to calculate maximum capacity? | F17: Choose one | J17: Specification | L17: Description | P17: Required
J18: Manufacturer maximum rate | L18: Maximum amount of abrasive/blast media that the equipment is capable of passing through the gun. | P18: The rate or parameters used must be identified by the manufacturer of the blasting equipment.
C21: Manufacturer rated capacity | F21: 0 | H21: lb/hour | J21: Nozzle parameters | L21: The diameter and pressure at the nozzle identified on manufacturer specifications.
E23: Nozzle diameter | F23: Choose one | H23: inches
E24: Nozzle pressure | F24: Choose one | H24: psig
B26: Calculate actual emissions
B27: During the last 12 months, how many | F27: Choose one | K27: 0 | M27: =IF(F27='Data Validation'!E16," ",IF(F27='Data Validation'!E17,"hour/year",IF(F27='Data Validation'!E18,"lb/year"))) -> 
B29: What type of control equipment is being used? | G29: Choose one | K29: See definitions in Minn. R. 7011.0070 | M29: Taking credit for control equipment is an option and requires compliance with the rule, which includes monitoring and recordkeeping requirements.
B30: What is the capture efficiency claimed? | G30: Choose one
B33: Abrasive blasting emission calculations
B34: Pollutant | D34: a | F34: b | H34: c | J34: d | N34: e
D35: Maximum hourly usage | F35: Actual annual throughput | H35: Hours in a year | J35: Emission factor | L35: Potential emissions | N35: Control efficiency1 | P35: Actual emissions | R35: Insignificant activity limits
D37: (lb/hr) | F37: (lb/yr) | H37: (hr/yr) | J37: (lb/lb) | L37: (ton/yr) | N37: (%) | P37: (tons/yr) | R37: (tons/yr)
H38: 24 hr/day * 365 day/yr | J38: by pollutant | L38: (a * c * d) / 2000 | P38: ( b * d ) / 2000
D39: =IF(F17='Data Validation'!C5,0,IF(F17='Data Validation'!C6,F21,IF(F17='Data Validation'!C7,'Blasting charts'!E4))) -> 0 | F39: =IF(F27='Data Validation'!E16,0,IF(F27='Data Validation'!E17,K27*D39,IF(F27='Data Validation'!E18,K27))) -> 0 | H39: 8760
B40: Criteria air pollutants
B41: PM | J41: =IF(F7="Choose one",0,IF(F7='Blasting charts'!B23,'Blasting charts'!C23,IF(F7='Blasting charts'!B24,'Blasting charts'!C24,IF(F7='Blasting charts'!B25,'Blasting charts'!C25,IF(F7='Blasting charts'!B26,'Blasting charts'!C26))))) -> 0 | L41: =$D$39*$H$39*J41/2000 -> 0 | M41: =D$39*H$39*J41/2000 -> 0 | N41: ='Blasting charts'!K31 -> 0 | P41: =F$39*J41*(1-N41)/2000 -> 0 | R41: 1
B42: PM10 | J42: =IF(F7='Data Validation'!B5,0,IF(F7='Blasting charts'!B23,'Blasting charts'!D23,IF(F7='Blasting charts'!B24,'Blasting charts'!C24,IF(F7='Blasting charts'!B25,'Blasting charts'!D25,IF(F7='Blasting charts'!B26,'Blasting charts'!D26))))) -> 0 | L42: =$D$39*$H$39*J42/2000 -> 0 | M42: =D$39*H$39*J42/2000 -> 0 | N42: ='Blasting charts'!L31 -> 0 | P42: =F$39*J42*(1-N42)/2000 -> 0 | R42: 1
B43: PM2.5 | J43: =J42 -> 0 | L43: 0 | M43: 0 | P43: 0
B44: Hazardous air pollutants2 | H44: (%)3 | J44: lb/lb
J45: =$J$41*H45 -> 0 | L45: =$D$39*$H$39*$J45/2000 -> 0 | M45: =D$39*H$39*J45/2000 -> 0 | P45: =F$39*$J45*(1-N45)/2000 -> 0
J46: =$J$41*H46 -> 0 | L46: =$D$39*$H$39*$J46/2000 -> 0 | M46: =D$39*H$39*J46/2000 -> 0 | P46: =F$39*$J46*(1-N46)/2000 -> 0
J47: 0 | L47: 0 | M47: 0 | P47: 0
J48: =$J$41*H48 -> 0 | L48: =$D$39*$H$39*$J48/2000 -> 0 | M48: =D$39*H$39*J48/2000 -> 0 | P48: 0
J49: 0 | L49: 0 | M49: 0 | P49: 0
J50: 0 | L50: 0 | M50: 0 | P50: 0
B51: 1Control efficiency may only be used when calculating actual emissions and when in compliance with the rule. Percent control is based on type of equipment and capture efficiency (Minn. R. 7011.0070).
B52: 2Review the material safety data sheet for the media used for presence of hazardous air pollutants (HAPs). | J52: List of individual pollutants and commonly reported individual pollutants in groups (aq-ei4-32)
B53: 3Add the metal HAP(s) and percent concentration to the pollutant list in the emission calculations.

Sheet Blasting charts
B1: =Instructions!O4 -> p-sbap5-19 • 6/5/23
B2: Air emissions from abrasive blasting
B4: Flow Rate at the nozzle (lb abrasive/hr)* | E4: =IF(T7='Data Validation'!B5,0,S7*('Abrasive Blasting'!F8/99)) -> 0 | F4: lb/hr (adjusted with material density)
B5: Internal Nozzle Diameter (inches) | C5: Nozzle Pressure (psig)
Q6: Diameter | R6: Pressure | S6: Flow rate | T6: Material
C7: 30 | D7: 40 | E7: 50 | F7: 60 | G7: 70 | H7: 80 | I7: 90 | J7: 100 | K7: 110 | L7: 120 | M7: 130 | N7: 140 | O7: Coefficient | P7: Area | Q7: =SUM(Q8:Q21) -> 0 | R7: =SUM(R8:R21) -> 0 | S7: =SUM(S8:S22) -> 0 | T7: ='Abrasive Blasting'!F7 -> Choose one
B8: 0.125 | C8: 28 | D8: 35 | E8: 42 | F8: 49 | G8: 55 | H8: 63 | I8: 70 | J8: 77 | K8: =J8*((K$7+14)/(J$7+14)) -> 83.75438596 | L8: =J8*(L7+14)/(J7+14) -> 90.50877193 | M8: =K8*(M7+14)/(K7+14) -> 97.26315789 | N8: =L8*(N7+14)/(L7+14) -> 104.0175439 | O8: 14 | P8: =(1/4)*PI()*(0.125^2) -> 0.0122718463 | Q8: =IF('Abrasive Blasting'!$F$23='Blasting charts'!B8,1," ") ->  | R8: =IF('Abrasive Blasting'!$F$24='Blasting charts'!C$7,1," ") ->  | S8: =IF(AND($Q$7=1,$R$7=1),C8,IF(AND($Q$7=1,$R$7=2),D8,IF(AND($Q$7=1,$R$7=3),E8,IF(AND($Q$7=1,$R$7=4),F8,IF(AND($Q$7=1,$R$7=5),G8,IF(AND($Q$7=1,$R$7=6),H8,IF(AND($Q$7=1,$R$7=7),I8,IF(AND($Q$7=1,$R$7=8),J8,IF(AND($Q$7=1,$R$7=9),K8,IF(AND($Q$7=1,$R$7=10),L8,IF(AND($Q$7=1,$R$7=11),M8,IF(AND($Q$7=1,$R$7=12),N8,0)))))))))))) -> 0
B9: 0.1875 | C9: 65 | D9: 80 | E9: 94 | F9: 107 | G9: 122 | H9: 135 | I9: 149 | J9: 165 | K9: =J9*(K$7+$O9)/(J$7+$O9) -> 177.5475285 | L9: =K9*(L$7+$O9)/(K$7+$O9) -> 190.095057 | M9: =L9*(M$7+$O9)/(L$7+$O9) -> 202.6425856 | N9: =M9*(N$7+$O9)/(M$7+$O9) -> 215.1901141 | O9: =O8/P8*P9 -> 31.5 | P9: =(1/4)*PI()*((3/16)^2) -> 0.02761165418 | Q9: =IF('Abrasive Blasting'!$F$23='Blasting charts'!B9,2," ") ->  | R9: =IF('Abrasive Blasting'!$F$24='Blasting charts'!D$7,2," ") ->  | S9: =IF(AND($Q$7=2,$R$7=1),C9,IF(AND($Q$7=2,$R$7=2),D9,IF(AND($Q$7=2,$R$7=3),E9,IF(AND($Q$7=2,$R$7=4),F9,IF(AND($Q$7=2,$R$7=5),G9,IF(AND($Q$7=2,$R$7=6),H9,IF(AND($Q$7=2,$R$7=7),I9,IF(AND($Q$7=2,$R$7=8),J9,IF(AND($Q$7=2,$R$7=9),K9,IF(AND($Q$7=2,$R$7=10),L9,IF(AND($Q$7=2,$R$7=11),M9,IF(AND($Q$7=2,$R$7=12),N9,0)))))))))))) -> 0
B10: 0.25 | C10: 109 | D10: 138 | E10: 168 | F10: 195 | G10: 221 | H10: 255 | I10: 280 | J10: 309 | K10: =J10*(K$7+$O10)/(J$7+$O10) -> 328.8076923 | L10: 348.6153846 | M10: 368.4230769 | N10: 388.2307692 | O10: =O9/P9*P10 -> 56 | P10: =(1/4)*PI()*(0.25^2) -> 0.04908738521 | Q10: =IF('Abrasive Blasting'!$F$23='Blasting charts'!B10,3," ") ->  | R10: =IF('Abrasive Blasting'!$F$24='Blasting charts'!E$7,3," ") ->  | S10: =IF(AND($Q$7=3,$R$7=1),C10,IF(AND($Q$7=3,$R$7=2),D10,IF(AND($Q$7=3,$R$7=3),E10,IF(AND($Q$7=3,$R$7=4),F10,IF(AND($Q$7=3,$R$7=5),G10,IF(AND($Q$7=3,$R$7=6),H10,IF(AND($Q$7=3,$R$7=7),I10,IF(AND($Q$7=3,$R$7=8),J10,IF(AND($Q$7=3,$R$7=9),K10,IF(AND($Q$7=3,$R$7=10),L10,IF(AND($Q$7=3,$R$7=11),M10,IF(AND($Q$7=3,$R$7=12),N10,0)))))))))))) -> 0
B11: 0.3125 | C11: 205 | D11: 247 | E11: 292 | F11: 354 | G11: 377 | H11: 420 | I11: 462 | J11: 507 | K11: 534.04 | L11: 561.08 | M11: 588.12 | N11: 615.16 | O11: 87.5 | P11: =(1/4)*PI()*((5/16)^2) -> 0.07669903939 | Q11: =IF('Abrasive Blasting'!$F$23='Blasting charts'!B11,4," ") ->  | R11: =IF('Abrasive Blasting'!$F$24='Blasting charts'!F$7,4," ") ->  | S11: =IF(AND($Q$7=4,$R$7=1),C11,IF(AND($Q$7=4,$R$7=2),D11,IF(AND($Q$7=4,$R$7=3),E11,IF(AND($Q$7=4,$R$7=4),F11,IF(AND($Q$7=4,$R$7=5),G11,IF(AND($Q$7=4,$R$7=6),H11,IF(AND($Q$7=4,$R$7=7),I11,IF(AND($Q$7=4,$R$7=8),J11,IF(AND($Q$7=4,$R$7=9),K11,IF(AND($Q$7=4,$R$7=10),L11,IF(AND($Q$7=4,$R$7=11),M11,IF(AND($Q$7=4,$R$7=12),N11,0)))))))))))) -> 0
B12: 0.375 | C12: 285 | D12: 355 | E12: 417 | F12: 477 | G12: 540 | H12: 600 | I12: 657 | J12: 720 | K12: 751.8584071 | L12: 783.7168142 | M12: 815.5752212 | N12: 847.4336283 | O12: 126 | P12: =(1/4)*PI()*((3/8)^2) -> 0.1104466167 | Q12: =IF('Abrasive Blasting'!$F$23='Blasting charts'!B12,5," ") ->  | R12: =IF('Abrasive Blasting'!$F$24='Blasting charts'!G$7,5," ") ->  | S12: =IF(AND($Q$7=5,$R$7=1),C12,IF(AND($Q$7=5,$R$7=2),D12,IF(AND($Q$7=5,$R$7=3),E12,IF(AND($Q$7=5,$R$7=4),F12,IF(AND($Q$7=5,$R$7=5),G12,IF(AND($Q$7=5,$R$7=6),H12,IF(AND($Q$7=5,$R$7=7),I12,IF(AND($Q$7=5,$R$7=8),J12,IF(AND($Q$7=5,$R$7=9),K12,IF(AND($Q$7=5,$R$7=10),L12,IF(AND($Q$7=5,$R$7=11),M12,IF(AND($Q$7=5,$R$7=12),N12,0)))))))))))) -> 0
B13: 0.4375 | C13: 385 | D13: 472 | E13: 560 | F13: 645 | G13: 755 | H13: 820 | I13: 905 | J13: 940 | K13: 974.6224678 | L13: 1009.244936 | M13: 1043.867403 | N13: 1078.489871 | O13: 171.5 | P13: =(1/4)*PI()*((7/16)^2) -> 0.1503301172 | Q13: =IF('Abrasive Blasting'!$F$23='Blasting charts'!B13,6," ") ->  | R13: =IF('Abrasive Blasting'!$F$24='Blasting charts'!H$7,6," ") ->  | S13: =IF(AND($Q$7=6,$R$7=1),C13,IF(AND($Q$7=6,$R$7=2),D13,IF(AND($Q$7=6,$R$7=3),E13,IF(AND($Q$7=6,$R$7=4),F13,IF(AND($Q$7=6,$R$7=5),G13,IF(AND($Q$7=6,$R$7=6),H13,IF(AND($Q$7=6,$R$7=7),I13,IF(AND($Q$7=6,$R$7=8),J13,IF(AND($Q$7=6,$R$7=9),K13,IF(AND($Q$7=6,$R$7=10),L13,IF(AND($Q$7=6,$R$7=11),M13,IF(AND($Q$7=6,$R$7=12),N13,0)))))))))))) -> 0
B14: 0.5 | C14: 503 | D14: 615 | E14: 725 | F14: 835 | G14: 945 | H14: 1050 | I14: 1160 | J14: 1265 | K14: 1304.04321 | L14: 1343.08642 | M14: 1382.12963 | N14: 1421.17284 | O14: 224 | P14: =(1/4)*PI()*(0.5^2) -> 0.1963495408 | Q14: =IF('Abrasive Blasting'!$F$23='Blasting charts'!B14,7," ") ->  | R14: =IF('Abrasive Blasting'!$F$24='Blasting charts'!I$7,7," ") ->  | S14: =IF(AND($Q$7=7,$R$7=1),C14,IF(AND($Q$7=7,$R$7=2),D14,IF(AND($Q$7=7,$R$7=3),E14,IF(AND($Q$7=7,$R$7=4),F14,IF(AND($Q$7=7,$R$7=5),G14,IF(AND($Q$7=7,$R$7=6),H14,IF(AND($Q$7=7,$R$7=7),I14,IF(AND($Q$7=7,$R$7=8),J14,IF(AND($Q$7=7,$R$7=9),K14,IF(AND($Q$7=7,$R$7=10),L14,IF(AND($Q$7=7,$R$7=11),M14,IF(AND($Q$7=7,$R$7=12),N14,0)))))))))))) -> 0
B15: 0.625 | C15: 820 | D15: 990 | E15: 1170 | F15: 1336 | G15: 1510 | H15: 1680 | I15: 1850 | J15: 2030 | K15: 2075.111111 | L15: 2120.222222 | M15: 2165.333333 | N15: 2210.444444 | O15: 350 | P15: =(1/4)*PI()*((5/8)^2) -> 0.3067961576 | Q15: =IF('Abrasive Blasting'!$F$23='Blasting charts'!B15,8," ") ->  | R15: =IF('Abrasive Blasting'!$F$24='Blasting charts'!J$7,8," ") ->  | S15: =IF(AND($Q$7=8,$R$7=1),C15,IF(AND($Q$7=8,$R$7=2),D15,IF(AND($Q$7=8,$R$7=3),E15,IF(AND($Q$7=8,$R$7=4),F15,IF(AND($Q$7=8,$R$7=5),G15,IF(AND($Q$7=8,$R$7=6),H15,IF(AND($Q$7=8,$R$7=7),I15,IF(AND($Q$7=8,$R$7=8),J15,IF(AND($Q$7=8,$R$7=9),K15,IF(AND($Q$7=8,$R$7=10),L15,IF(AND($Q$7=8,$R$7=11),M15,IF(AND($Q$7=8,$R$7=12),N15,0)))))))))))) -> 0
B16: 0.75 | C16: 1140 | D16: 1420 | E16: 1670 | F16: 1915 | G16: 2160 | H16: 2400 | I16: 2630 | J16: 2880 | K16: 2927.682119 | L16: 2975.364238 | M16: 3023.046358 | N16: 3070.728477 | O16: 504 | P16: =(1/4)*PI()*(0.75^2) -> 0.4417864669 | Q16: =IF('Abrasive Blasting'!$F$23='Blasting charts'!B16,9," ") ->  | R16: =IF('Abrasive Blasting'!$F$24='Blasting charts'!K$7,9," ") ->  | S16: =IF(AND($Q$7=9,$R$7=1),C16,IF(AND($Q$7=9,$R$7=2),D16,IF(AND($Q$7=9,$R$7=3),E16,IF(AND($Q$7=9,$R$7=4),F16,IF(AND($Q$7=9,$R$7=5),G16,IF(AND($Q$7=9,$R$7=6),H16,IF(AND($Q$7=9,$R$7=7),I16,IF(AND($Q$7=9,$R$7=8),J16,IF(AND($Q$7=9,$R$7=9),K16,IF(AND($Q$7=9,$R$7=10),L16,IF(AND($Q$7=9,$R$7=11),M16,IF(AND($Q$7=9,$R$7=12),N16,0)))))))))))) -> 0
B17: 1 | C17: 2030 | D17: 2460 | E17: 2900 | F17: 3340 | G17: 3780 | H17: 4200 | I17: 4640 | J17: 5060 | K17: 5110.803213 | L17: 5161.606426 | M17: 5212.409639 | N17: 5263.212851 | O17: 896 | P17: =(1/4)*PI()*(1^2) -> 0.7853981634 | Q17: =IF('Abrasive Blasting'!$F$23='Blasting charts'!B17,10," ") ->  | R17: =IF('Abrasive Blasting'!$F$24='Blasting charts'!L$7,10," ") ->  | S17: =IF(AND($Q$7=10,$R$7=1),C17,IF(AND($Q$7=10,$R$7=2),D17,IF(AND($Q$7=10,$R$7=3),E17,IF(AND($Q$7=10,$R$7=4),F17,IF(AND($Q$7=10,$R$7=5),G17,IF(AND($Q$7=10,$R$7=6),H17,IF(AND($Q$7=10,$R$7=7),I17,IF(AND($Q$7=10,$R$7=8),J17,IF(AND($Q$7=10,$R$7=9),K17,IF(AND($Q$7=10,$R$7=10),L17,IF(AND($Q$7=10,$R$7=11),M17,IF(AND($Q$7=10,$R$7=12),N17,0)))))))))))) -> 0
B18: *The flow rates in the above chart are for sand. If you are using steel or aluminum oxide as your abrasive blast material, the spreadsheet will automatically convert the flow rate provided to these other abrasive material types. Flow rates in grey are using the original guidance ratio equation from SCAQMD Memorandum from J. Nenzell to Metallurgical Engineers, Subject: Abrasive Blasting, March 13, 1975.
R19: =IF('Abrasive Blasting'!$F$24='Blasting charts'!M$7,11," ") -> 
R20: =IF('Abrasive Blasting'!$F$24='Blasting charts'!N$7,12," ") -> 
B22: Emission Factors for Abrasives* | C22: PM (lb PM/lb abrasive) | D22: PM10 (lb PM10/lb of Abrasive)** | F22: PM10 emissions derived from STAPPA/ALAPCO PM10 factors which were based on the amount of PM generated:
B23: Sand | C23: 0.041 | D23: =C23*0.7 -> 0.0287 | F23: sand = 0.7 lbs PM10 per lb of PM; grit= 0.7 lb PM10 per lb of PM; Steel shot = 0.86 lb PM10 per lb of PM
B24: Grit | C24: 0.01 | D24: =C24*0.7 -> 0.007 | F24: For "Other", assume PM10=PM
B25: Shot | C25: 0.004 | D25: =C25*0.86 -> 0.00344
B26: Other | C26: 0.01 | D26: 0.01
B30: Control equipment | C30: Pollutant | D30: Control efficiency (%) | I30: Equipment | J30: Capture | K30: PM | L30: PM10
B31: Choose one | D31: Total enclosure | E31: Certified hood | F31: Uncertified hood | I31: =IF('Abrasive Blasting'!G29="Choose one",0,IF('Abrasive Blasting'!G29='Blasting charts'!B32,1,IF('Abrasive Blasting'!G29='Blasting charts'!B34,2,IF('Abrasive Blasting'!G29='Blasting charts'!B36,3,IF('Abrasive Blasting'!G29='Blasting charts'!B38,4,IF('Abrasive Blasting'!G29='Blasting charts'!B40,5,IF('Abrasive Blasting'!G29='Blasting charts'!B42,6,IF('Abrasive Blasting'!G29='Blasting charts'!B44,7)))))))) -> 0 | J31: =IF('Abrasive Blasting'!G30="Choose one",0,IF('Abrasive Blasting'!G30='Blasting charts'!D31,1,IF('Abrasive Blasting'!G30='Blasting charts'!E31,2,IF('Abrasive Blasting'!G30='Blasting charts'!F31,3)))) -> 0 | K31: =SUM(K32:K45) -> 0 | L31: =SUM(L32:L46) -> 0
B32: Cyclone (high efficiency) | C32: PM | D32: 0.9 | E32: 0.72 | F32: 0.54 | K32: =IF(AND($I$31=1,$J$31=1),D32,IF(AND($I$31=1,$J$31=2),E32,IF(AND($I$31=1,$J$31=3),F32,0))) -> 0
C33: PM10 | D33: 0.78 | E33: 0.62 | F33: 0.46 | L33: =IF(AND($I$31=1,$J$31=1),D33,IF(AND($I$31=1,$J$31=2),E33,IF(AND($I$31=1,$J$31=3),F33,0))) -> 0
B34: Cyclone (medium efficiency) | C34: PM | D34: 0.8 | E34: 0.64 | F34: 0.48 | K34: =IF(AND($I$31=2,$J$31=1),D34,IF(AND($I$31=2,$J$31=2),E34,IF(AND($I$31=2,$J$31=3),F34,0))) -> 0
C35: PM10 | D35: 0.6 | E35: 0.48 | F35: 0.36 | L35: =IF(AND($I$31=2,$J$31=1),D35,IF(AND($I$31=2,$J$31=2),E35,IF(AND($I$31=2,$J$31=3),F35,0))) -> 0
B36: Cyclone (low efficiency) | C36: PM | D36: 0.25 | E36: 0.2 | F36: 0.15 | K36: =IF(AND($I$31=3,$J$31=1),D36,IF(AND($I$31=3,$J$31=2),E36,IF(AND($I$31=3,$J$31=3),F36,0))) -> 0
C37: PM10 | D37: 0.25 | E37: 0.2 | F37: 0.15 | L37: =IF(AND($I$31=3,$J$31=1),D37,IF(AND($I$31=3,$J$31=2),E37,IF(AND($I$31=3,$J$31=3),F37,0))) -> 0
B38: Wet cyclone | C38: PM | D38: 0.84 | E38: 0.68 | F38: 0.51 | K38: =IF(AND($I$31=4,$J$31=1),D38,IF(AND($I$31=4,$J$31=2),E38,IF(AND($I$31=4,$J$31=3),F38,0))) -> 0
C39: PM10 | D39: 0.84 | E39: 0.68 | F39: 0.51 | L39: =IF(AND($I$31=4,$J$31=1),D39,IF(AND($I$31=4,$J$31=2),E39,IF(AND($I$31=4,$J$31=3),F39,0))) -> 0
B40: Wall or panel filter | C40: PM | D40: 0.85 | E40: 0.68 | F40: 0.51 | K40: =IF(AND($I$31=5,$J$31=1),D40,IF(AND($I$31=5,$J$31=2),E40,IF(AND($I$31=5,$J$31=3),F40,0))) -> 0
C41: PM10 | D41: 0.85 | E41: 0.68 | F41: 0.51 | L41: =IF(AND($I$31=5,$J$31=1),D41,IF(AND($I$31=5,$J$31=2),E41,IF(AND($I$31=5,$J$31=3),F41,0))) -> 0
B42: HEPA or ULPA filter | C42: PM | D42: 0.9998 | E42: 0.8 | F42: 0.6 | K42: =IF(AND($I$31=6,$J$31=1),D42,IF(AND($I$31=6,$J$31=2),E42,IF(AND($I$31=6,$J$31=3),F42,0))) -> 0
C43: PM10 | D43: 0.9998 | E43: 0.8 | F43: 0.6 | L43: =IF(AND($I$31=6,$J$31=1),D43,IF(AND($I$31=6,$J$31=2),E43,IF(AND($I$31=6,$J$31=3),F43,0))) -> 0
B44: None claimed | K44: =IF($J$31=7,0,0) -> 0
B49: Ratio Dimensions | C49: High Efficiency | D49: Medium Efficiency | E49: Low Efficiency
B50: Height of inlet, H/D | C50: ≤0.44 | D50: >0.44 and <0.8 | E50: ≥0.8
B51: Width of inlet, W/D | C51: ≤0.2 | D51: >0.2 and <0.375 | E51: ≥0.375
B52: Diameter of gas exit, De/D | C52: ≤0.4 | D52: >0.4 and <0.75 | E52: ≥0.75
B53: Length of vortex finder, S/D | C53: ≤0.5 | D53: >0.5 and <0.875 | E53: ≥0.875

Sheet Data Validation (hidden)
B1: =Instructions!O4 -> p-sbap5-19 • 6/5/23
B2: Air emissions from abrasive blasting
B4: Blast media | C4: Manufacturer Specification | E4: Control equipment | F4: Capture efficiency
B5: Choose one | C5: Choose one | E5: Choose one | F5: Choose one
B6: Sand | C6: Manufacturer maximum rate | E6: Cyclone (high efficiency) | F6: Total enclosure
B7: Grit | C7: Nozzle parameters | E7: Cyclone (medium efficiency) | F7: Certified hood
B8: Shot | E8: Cyclone (low efficiency) | F8: Uncertified hood
B9: Other | E9: Wet cyclone
E10: Wall or panel filter
E11: HEPA or ULPA filter
E12: None claimed
B16: Flow Rate at the nozzle (lb abrasive/hr)* | E16: Choose one
B17: Nozzle Diameter | C17: Nozzle Pressure | E17: hours was the blasting equipment operated?
B18: Choose one | C18: Choose one | E18: actual pounds of abrasive media were used?
B19: 0.125 | C19: 30
B20: 0.1875 | C20: 40
B21: 0.25 | C21: 50
B22: 0.3125 | C22: 60
B23: 0.375 | C23: 70
B24: 0.4375 | C24: 80
B25: 0.5 | C25: 90
B26: 0.625 | C26: 100
B27: 0.75 | C27: 110
B28: 1 | C28: 120
C29: 130
C30: 140
B33: Mechanical finishing | E33: Ratio of uncaptured to captured emissions from the control equipment
B34: Control equipment type
B35: Choose control equipment type
B36: total enclosure vented to any type of control equipment | E36: 0
B37: certified hood vented to a fabric filter | E37: 3.57
B38: certified hood vented to a cyclone or other type of control equipment | E38: 1.14
B39: uncertified hood vented to a fabric filter | E39: 14.29
B40: uncertified hood vented to a cyclone or other type of control equipment | E40: 4.54
B42: Control equipment selection
B43: ='Mechanical Finishing'!E29 -> Choose control equipment type | E43: =IF(B43=B35,"--",IF(B43=B36,E36,IF(B43=B37,E37,IF(B43=B38,E38,IF(B43=B39,E39,IF(B43=B40,E40)))))) -> --
